bitfinex/quotes_BTCUSD_20250428
["timestamp","ask_amount","ask_price","bid_price","bid_amount"]
[1745843576909,0.0004244,95340.0,95338.0,0.65667008]
[1745843578197,0.0004244,95340.0,95338.0,1.35667008]
[1745843579473,0.0004244,95340.0,95338.0,1.35867008]
[1745843579859,0.0004244,95340.0,95338.0,1.36067008]
[1745843581305,0.0004244,95340.0,95338.0,1.77127008]
[1745843594305,0.0004244,95340.0,95338.0,2.08583008]
[1745843595756,0.0004244,95340.0,95338.0,2.10037093]
[1745843598685,1e-08,95346.0,95345.0,0.56430538]
[1745843598834,1e-08,95346.0,95345.0,1.82959552]
[1745843599243,1e-08,95349.0,95348.0,0.56429878]
[1745843599443,1e-08,95349.0,95348.0,0.76314892]
[1745843599812,1e-08,95349.0,95348.0,1.46314892]
[1745843600612,1e-08,95349.0,95348.0,1.51064892]
[1745843600807,1e-08,95349.0,95348.0,1.41868892]
[1745843601008,1e-08,95349.0,95348.0,1.46314892]
[1745843602796,1e-08,95349.0,95348.0,1.46614892]
[1745843603381,1e-08,95349.0,95348.0,1.37418892]
[1745843603579,1e-08,95349.0,95348.0,1.46614892]
[1745843604838,1e-08,95349.0,95348.0,1.87674892]
[1745843606794,0.0004244,95366.0,95365.0,0.54972054]
[1745843606997,0.0004244,95366.0,95365.0,1.66032054]
[1745843608231,0.0024244,95366.0,95365.0,1.66032054]
[1745843608576,0.0024244,95366.0,95365.0,1.66828233]
[1745843613618,0.0024244,95366.0,95365.0,1.98280233]
[1745843613829,0.0024244,95366.0,95365.0,2.07472233]
[1745843614785,0.0024244,95366.0,95365.0,1.98280233]
[1745843615011,0.0988244,95366.0,95365.0,2.07472233]
[1745843620691,0.0493244,95366.0,95365.0,2.07472233]
[1745843620944,0.0024244,95366.0,95365.0,1.84135149]
[1745843621333,0.0024244,95366.0,95365.0,2.05107203]
[1745843634207,0.0004244,95366.0,95365.0,2.15796217]
[1745843635025,0.0004244,95366.0,95365.0,2.17250302]
[1745843636410,0.0004244,95366.0,95365.0,2.17450302]
[1745843636625,0.0004244,95366.0,95365.0,2.08258302]
[1745843636842,0.0004244,95366.0,95365.0,2.17550302]
[1745843637279,0.0478,95395.0,95387.0,0.20967217]
[1745843637501,0.0478,95395.0,95387.0,1.34159217]
[1745843637706,0.0478,95395.0,95387.0,1.44848231]
[1745843638597,0.00262046,95415.0,95387.0,1.66395099]
[1745843638800,0.0004243,95442.0,95399.0,0.5496458]
[1745843638801,0.093,95414.0,95399.0,0.5496458]
[1745843639024,0.093,95414.0,95399.0,0.65653594]
[1745843639438,0.093,95414.0,95399.0,1.35653594]
[1745843639852,0.093,95414.0,95399.0,1.26079947]
[1745843640294,0.093,95414.0,95399.0,1.36768961]
[1745843640491,0.0948,95425.0,95404.0,0.54963481]
[1745843640709,1e-08,95405.0,95404.0,1.3710658]
[1745843642363,0.02,95430.0,95422.0,0.54959527]
[1745843642566,0.02,95430.0,95422.0,2.17344541]
[1745843643246,0.066073,95442.0,95441.0,0.20955354]
[1745843644122,0.0004243,95445.0,95443.0,0.20954915]
[1745843644326,0.0004942,95444.0,95443.0,0.30142915]
[1745843644750,0.0004942,95444.0,95443.0,1.00142915]
[1745843645364,0.0004942,95444.0,95443.0,0.79957162]
[1745843645541,0.0481942,95444.0,95443.0,0.79957162]
[1745843646345,0.0956942,95444.0,95443.0,0.79957162]
[1745843648269,0.0956942,95444.0,95443.0,0.70769162]
[1745843648492,0.0956942,95444.0,95443.0,0.79957162]
[1745843649776,0.09831361,95444.0,95443.0,0.79957162]
[1745843652369,0.20520375,95444.0,95443.0,0.70769162]
[1745843652537,0.4157507,95444.0,95443.0,0.61089162]
[1745843652717,0.41313129,95444.0,95443.0,0.56409162]
[1745843652918,0.41313129,95444.0,95443.0,0.00769162]
[1745843653121,0.20956232,95437.0,95436.0,0.09184]
[1745843653325,0.41747244,95437.0,95436.0,0.09184]
[1745843653534,0.41747244,95437.0,95401.0,0.09558076]
[1745843653535,0.20959307,95423.0,95420.0,0.0918]
[1745843653742,0.30799746,95421.0,95420.0,0.0918]
[1745843653949,0.4148876,95421.0,95420.0,0.09967905]
[1745843654964,0.4148876,95421.0,95420.0,0.0918]
[1745843655869,0.42218818,95421.0,95420.0,0.0918]
[1745843656068,0.01048207,95401.0,95396.0,0.22013499]
[1745843656243,0.00262058,95400.0,95397.0,0.09184]
[1745843657134,0.01301037,95400.0,95397.0,0.09184]
[1745843657335,0.22265413,95400.0,95397.0,0.09184]
[1745843657514,0.20964702,95399.0,95397.0,0.09284]
[1745843657668,0.22012594,95400.0,95397.0,0.09284]
[1745843657881,0.20964597,95399.0,95397.0,0.10067741]
[1745843658077,0.0477207,95398.0,95397.0,0.10067741]
[1745843659027,0.0451,95398.0,95397.0,0.10067741]
[1745843659164,0.0451,95398.0,95397.0,0.09967741]
[1745843659803,0.04772072,95398.0,95397.0,0.09967741]
[1745843660307,0.00262072,95398.0,95397.0,0.09967741]
[1745843661087,0.00462072,95398.0,95397.0,0.09967741]
[1745843665208,0.21426872,95398.0,95397.0,0.09967741]
[1745843670297,0.00462072,95398.0,95397.0,0.09967741]
[1745843670510,0.002,95398.0,95397.0,0.3093276]
[1745843674898,0.002,95398.0,95397.0,0.09967741]
[1745843675114,0.31853814,95398.0,95397.0,0.00783741]
[1745843675344,0.0104836,95387.0,95381.0,0.31436]
[1745843675549,0.20968316,95382.0,95381.0,0.31436]
[1745843675750,0.21230429,95382.0,95381.0,0.41399113]
[1745843676693,0.21430429,95382.0,95381.0,0.41399113]
[1745843677096,0.21430429,95382.0,95381.0,0.32215113]
[1745843677419,0.21430429,95382.0,95381.0,0.41399113]
[1745843679005,0.21530429,95382.0,95381.0,0.41399113]
[1745843681125,0.22264268,95382.0,95381.0,0.41399113]
[1745843681319,0.22002155,95382.0,95381.0,0.41399113]
[1745843681526,0.2396002,95382.0,95381.0,0.41399113]
[1745843685369,0.2396002,95382.0,95381.0,0.32215113]
[1745843689900,0.2849002,95382.0,95381.0,0.32215113]
[1745843690292,0.2849002,95382.0,95381.0,0.00779113]
[1745843690489,0.20968976,95379.0,95378.0,0.09184]
[1745843690693,0.21231102,95379.0,95378.0,0.09184]
[1745843691292,0.23188967,95379.0,95378.0,0.09184]
[1745843691493,0.23661481,95379.0,95378.0,0.09184]
[1745843692356,0.23761481,95379.0,95378.0,0.09184]
[1745843694171,0.23761481,95379.0,95378.0,0.09958462]
[1745843694744,0.02792505,95379.0,95378.0,0.09958462]
[1745843694976,0.01096765,95379.0,95378.0,0.09958462]
[1745843695355,0.21803616,95379.0,95378.0,0.09958462]
[1745843695549,0.0083464,95379.0,95378.0,0.09958462]
[1745843695812,0.21803616,95379.0,95378.0,0.09958462]
[1745843698090,0.0083464,95379.0,95378.0,0.09958462]
[1745843698294,0.02793963,95379.0,95378.0,0.09958462]
[1745843698496,0.03056086,95379.0,95378.0,0.09958462]
[1745843698737,0.24025062,95379.0,95378.0,0.09958462]
[1745843698946,0.23762939,95379.0,95378.0,0.09958462]
[1745843699294,0.02793963,95379.0,95378.0,0.09958462]
[1745843699605,0.03056087,95379.0,95378.0,0.09958462]
[1745843700010,0.24025063,95379.0,95378.0,0.09958462]
[1745843700214,0.02793963,95379.0,95378.0,0.09958462]
[1745843700432,0.03056087,95379.0,95378.0,0.09958462]
[1745843701443,0.24025063,95379.0,95378.0,0.09958462]
[1745843701604,0.23762939,95379.0,95378.0,0.09958462]
[1745843702160,0.02793963,95379.0,95378.0,0.09958462]
[1745843702360,0.03056087,95379.0,95378.0,0.09958462]
[1745843704350,0.02793963,95379.0,95378.0,0.30927658]
[1745843705206,0.0083464,95379.0,95378.0,0.30927658]
[1745843705923,0.0083464,95379.0,95378.0,0.09958462]
[1745843706124,0.22065727,95379.0,95378.0,0.09958462]
[1745843706332,0.02798876,95379.0,95378.0,0.00774462]
[1745843706543,0.03061,95379.0,95378.0,0.09184]
[1745843707585,0.24029976,95379.0,95378.0,0.09968826]
[1745843707761,0.23767852,95379.0,95378.0,0.09968826]
[1745843708293,0.43932654,95379.0,95378.0,0.09968826]
[1745843708497,0.34456866,95379.0,95378.0,0.09968826]
[1745843709197,0.23767852,95379.0,95378.0,0.09968826]
[1745843710678,0.2375024,95379.0,95378.0,0.09968826]
[1745843711008,0.02781264,95379.0,95378.0,0.09968826]
[1745843713275,0.03043389,95379.0,95378.0,0.09968826]
[1745843713505,0.02781264,95379.0,95378.0,0.09968826]
[1745843713742,0.2375024,95379.0,95378.0,0.09968826]
[1745843722952,0.2375024,95379.0,95378.0,0.09964826]
[1745843732130,0.22018892,95373.0,95369.0,0.13567797]
[1745843732326,0.22018892,95373.0,95371.0,0.7]
[1745843732674,0.00717028,95372.0,95371.0,0.7]
[1745843733167,0.00717028,95372.0,95371.0,0.70800607]
[1745843733755,0.02680944,95372.0,95371.0,0.70800607]
[1745843734022,0.02943076,95372.0,95371.0,0.70800607]
[1745843734250,0.02680944,95372.0,95371.0,0.00800607]
[1745843734462,0.02680944,95372.0,95371.0,0.09980607]
[1745843734662,0.02943094,95372.0,95371.0,0.09960413]
[1745843734869,0.02680944,95372.0,95371.0,0.09960413]
[1745843735695,0.02680944,95372.0,95371.0,0.10060413]
[1745843735903,0.02680944,95372.0,95371.0,0.09960413]
[1745843736037,0.0266063,95372.0,95371.0,0.09960413]
[1745843736242,0.0276063,95372.0,95371.0,0.09960413]
[1745843737117,0.0286063,95372.0,95371.0,0.09960413]
[1745843737798,0.03122772,95372.0,95371.0,0.09960413]
[1745843738406,0.0286063,95372.0,95371.0,0.09960413]
[1745843738992,0.03122772,95372.0,95371.0,0.09960413]
[1745843741041,0.13811786,95372.0,95371.0,0.09960413]
[1745843742234,0.14531471,95372.0,95371.0,0.09960413]
[1745843742664,0.35501986,95372.0,95371.0,0.09960413]
[1745843743263,0.34520159,95372.0,95371.0,0.09960413]
[1745843746348,0.34500346,95372.0,95371.0,0.09960413]
[1745843751684,0.34500346,95372.0,95371.0,0.09960413]
[1745843757365,0.20972898,95362.0,95360.0,0.03807164]
[1745843757595,0.20972898,95362.0,95361.0,0.10325658]
[1745843757596,0.22021533,95362.0,95361.0,0.10325658]
[1745843758940,0.22021533,95362.0,95361.0,0.1121649]
[1745843760598,0.23984936,95362.0,95361.0,0.1121649]
[1745843760814,0.24721361,95362.0,95361.0,0.1121649]
[1745843761330,0.03748861,95362.0,95361.0,0.1121649]
[1745843761505,0.24721575,95362.0,95361.0,0.1121649]
[1745843761927,0.02700226,95362.0,95361.0,0.1121649]
[1745843762518,0.02699875,95362.0,95361.0,0.1121649]
[1745843762923,0.23672589,95362.0,95361.0,0.1131649]
[1745843764425,0.02699875,95362.0,95361.0,0.1131649]
[1745843765727,0.00736074,95362.0,95361.0,0.1131649]
[1745843766619,0.02699142,95362.0,95361.0,0.1131649]
[1745843767422,0.02678428,95362.0,95361.0,0.1131649]
[1745843768836,0.0071536,95362.0,95361.0,0.1131649]
[1745843773196,0.0071536,95362.0,95361.0,0.36819424]
[1745843773354,0.0071536,95362.0,95361.0,0.41439424]
[1745843773555,0.01048448,95379.0,95375.0,0.0453]
[1745843773757,0.22017681,95378.0,95376.0,0.01151904]
[1745843774718,0.22017548,95379.0,95375.0,0.0453]
[1745843774919,0.22017548,95379.0,95377.0,0.01151708]
[1745843775129,0.22017548,95379.0,95377.0,0.7]
[1745843775427,0.22017548,95379.0,95378.0,0.01151904]
[1745843775971,0.22217548,95379.0,95378.0,0.01151904]
[1745843776307,0.22217548,95379.0,95378.0,0.71151904]
[1745843776667,0.22017548,95379.0,95378.0,0.71151904]
[1745843777213,0.22217548,95379.0,95378.0,0.71151904]
[1745843777801,0.22201537,95379.0,95378.0,0.71151904]
[1745843778236,0.37490551,95379.0,95378.0,0.71151904]
[1745843778602,0.39451724,95379.0,95378.0,0.01151904]
[1745843779026,0.20971395,95368.0,95367.0,0.09172]
[1745843779226,0.21233548,95368.0,95367.0,0.09172]
[1745843779446,0.21233548,95368.0,95367.0,0.10122108]
[1745843779650,0.21968962,95368.0,95367.0,0.10122108]
[1745843779919,0.21706809,95368.0,95367.0,0.10122108]
[1745843780168,0.21806809,95368.0,95367.0,0.10122108]
[1745843780608,0.22020194,95367.0,95365.0,0.09172]
[1745843780886,0.00262155,95366.0,95365.0,0.09172]
[1745843781118,0.00997569,95366.0,95365.0,0.09172]
[1745843781533,0.21969403,95366.0,95365.0,0.79172]
[1745843781755,0.21707248,95366.0,95365.0,0.79172]
[1745843782351,0.21707248,95366.0,95365.0,0.79272]
[1745843782555,0.21707248,95366.0,95365.0,0.79172]
[1745843782756,0.32396262,95366.0,95365.0,0.60745011]
[1745843782956,0.32396262,95366.0,95365.0,0.60845011]
[1745843783316,0.32396262,95366.0,95365.0,0.001]
[1745843783681,0.20972054,95365.0,95364.0,0.09172]
[1745843783881,0.20972714,95362.0,95361.0,0.0079883]
[1745843784059,0.20973374,95359.0,95358.0,0.0008492]
[1745843784265,0.36674596,95359.0,95358.0,1e-08]
[1745843784509,0.38373706,95359.0,95358.0,1e-08]
[1745843785235,0.3910912,95359.0,95358.0,1e-08]
[1745843786035,0.3930912,95359.0,95358.0,1e-08]
[1745843787852,0.37347802,95359.0,95358.0,1e-08]
[1745843788258,0.37647802,95359.0,95358.0,1e-08]
[1745843792885,0.32897802,95359.0,95358.0,1e-08]
[1745843804946,0.01048866,95341.0,95339.0,0.09176]
[1745843805357,0.22026391,95341.0,95340.0,0.00598774]
[1745843805877,0.22026199,95341.0,95340.0,0.00598774]
[1745843806049,0.22025556,95344.0,95340.0,0.05478774]
[1745843806253,0.20977163,95342.0,95340.0,0.05478774]
[1745843806455,0.20977333,95341.0,95340.0,0.05478774]
[1745843806848,0.20977333,95341.0,95340.0,0.05578774]
[1745843807254,0.20977333,95341.0,95340.0,0.05478774]
[1745843807458,0.20977333,95341.0,95340.0,0.05578774]
[1745843807996,0.20977333,95341.0,95340.0,0.05478774]
[1745843808141,0.20977554,95340.0,95339.0,0.01058262]
[1745843808336,0.20977554,95340.0,95339.0,0.8102621]
[1745843808546,0.20977554,95340.0,95339.0,0.81047832]
[1745843809703,0.20977554,95340.0,95339.0,0.11047832]
[1745843811904,0.21713766,95340.0,95339.0,0.11047832]
[1745843812489,0.21713766,95340.0,95339.0,0.81047832]
[1745843812963,0.21713766,95340.0,95339.0,0.7998957]
[1745843814146,0.00736212,95340.0,95339.0,0.7998957]
[1745843815274,0.21713766,95340.0,95339.0,0.7998957]
[1745843815823,0.21713766,95340.0,95339.0,0.80469305]
[1745843816031,0.00736212,95340.0,95339.0,0.80469305]
[1745843816239,0.00736212,95340.0,95339.0,1.01447079]
[1745843816475,0.82998847,95377.0,95355.0,0.01048712]
[1745843816476,0.01048646,95361.0,95355.0,0.01048712]
[1745843816728,0.20973359,95360.0,95353.0,0.01048734]
[1745843817006,0.01048679,95358.0,95352.0,0.26733652]
[1745843817146,0.01048679,95358.0,95354.0,0.00025797]
[1745843817340,0.00736869,95357.0,95354.0,0.20974464]
[1745843817542,0.00736869,95357.0,95355.0,0.00025138]
[1745843817993,0.00736869,95357.0,95355.0,0.20999318]
[1745843818556,0.00736869,95356.0,95355.0,0.00025138]
[1745843818937,0.00736869,95356.0,95355.0,0.90999392]
[1745843819634,0.00736869,95356.0,95355.0,0.91399392]
[1745843820036,0.00936869,95356.0,95355.0,0.90999392]
[1745843820689,0.01136869,95356.0,95355.0,0.90999392]
[1745843822558,0.0118262,95356.0,95355.0,0.90999392]
[1745843823438,0.22156654,95356.0,95355.0,0.70025138]
[1745843823660,0.32845668,95356.0,95355.0,0.70025138]
[1745843823874,0.37715668,95356.0,95355.0,0.70025138]
[1745843824074,0.37715668,95356.0,95355.0,0.7]
[1745843824410,0.37715668,95356.0,95355.0,0.70505873]
[1745843824839,0.37715668,95356.0,95355.0,0.00505873]
[1745843825217,0.37715668,95356.0,95342.0,0.09172]
[1745843825218,0.20976893,95343.0,95342.0,0.09172]
[1745843825438,0.32665006,95343.0,95342.0,0.0967538]
[1745843825637,0.32665006,95343.0,95342.0,0.0050338]
[1745843825638,0.41952776,95343.0,95342.0,0.0050338]
[1745843825879,0.20977554,95340.0,95339.0,0.00795948]
[1745843826207,0.20979094,95333.0,95330.0,0.0008496]
[1745843826377,0.21125665,95333.0,95330.0,0.0008496]
[1745843826556,0.21125665,95333.0,95332.0,0.00590347]
[1745843826728,0.0026225,95333.0,95332.0,0.0008494]
[1745843827186,0.00999119,95333.0,95332.0,0.0008494]
[1745843827381,0.11688133,95333.0,95332.0,0.0008494]
[1745843828471,0.11688133,95333.0,95332.0,0.00873895]
[1745843828633,0.11688133,95333.0,95332.0,0.0008494]
[1745843829840,0.11688133,95333.0,95332.0,0.0018494]
[1745843830040,0.32667227,95333.0,95332.0,0.0018494]
[1745843830240,0.32404977,95333.0,95332.0,0.0038494]
[1745843830556,0.32404977,95333.0,95332.0,0.0028494]
[1745843830755,0.32404977,95333.0,95332.0,0.0008494]
[1745843832889,0.32404977,95333.0,95332.0,0.00889235]
[1745843836216,0.42148873,95333.0,95332.0,0.00889235]
[1745843836450,0.37364977,95333.0,95332.0,0.0008494]
[1745843836622,0.41864977,95333.0,95332.0,0.0008494]
[1745843837064,0.43824869,95333.0,95332.0,0.0008494]
[1745843838417,0.43924869,95333.0,95332.0,0.0008494]
[1745843839587,0.44024869,95333.0,95332.0,0.0008494]
[1745843841899,0.48565584,95333.0,95332.0,0.0008494]
[1745843842296,0.44024869,95333.0,95332.0,0.0008494]
[1745843844355,0.44006256,95333.0,95332.0,0.0008494]
[1745843845048,0.42046364,95333.0,95332.0,0.0008494]
[1745843847078,0.44003715,95333.0,95332.0,0.0008494]
[1745843849245,0.43903715,95333.0,95332.0,0.0008494]
[1745843849422,0.43803715,95333.0,95332.0,0.0008494]
[1745843850046,0.44003715,95333.0,95332.0,0.0008494]
[1745843851044,0.44203715,95333.0,95332.0,0.0008494]
[1745843858391,0.81936948,95333.0,95332.0,0.0008494]
[1745843859491,0.796578,95333.0,95332.0,0.0008494]
[1745843859790,0.794578,95333.0,95332.0,0.0008494]
[1745843860020,0.794578,95333.0,95332.0,0.0118494]
[1745843860774,0.792578,95333.0,95332.0,0.0118494]
[1745843861200,0.43803715,95333.0,95332.0,0.0118494]
[1745843861400,0.43903715,95333.0,95332.0,0.0238494]
[1745843862853,0.47632545,95333.0,95332.0,0.0238494]
[1745843863346,0.43903715,95333.0,95332.0,0.0238494]
[1745843865877,0.38943715,95333.0,95332.0,0.0238494]
[1745843866059,0.34443715,95333.0,95332.0,0.0238494]
[1745843867444,0.35426481,95333.0,95332.0,0.0238494]
[1745843869974,0.35412972,95333.0,95332.0,0.0238494]
[1745843876611,0.35412972,95333.0,95332.0,0.0128494]
[1745843877747,0.35312972,95333.0,95332.0,0.0008494]
[1745843877954,0.35312972,95333.0,95332.0,0.0098494]
[1745843878485,0.35312972,95333.0,95332.0,0.0208494]
[1745843880226,0.3529556,95333.0,95332.0,0.0208494]
[1745843885220,0.50574446,95333.0,95332.0,0.0208494]
[1745843885445,0.44649649,95333.0,95332.0,0.0208494]
[1745843887428,0.01048998,95329.0,95326.0,0.0008484]
[1745843887550,0.01048998,95329.0,95311.0,0.002]
[1745843887551,0.4585316,95322.0,95311.0,0.002]
[1745843887776,0.71855054,95320.0,95311.0,0.002]
[1745843888038,0.35454085,95319.0,95311.0,0.002]
[1745843888188,0.37856815,95312.0,95311.0,0.002]
[1745843888394,0.38839581,95312.0,95311.0,0.002]
[1745843888605,0.43469581,95312.0,95311.0,0.002]
[1745843888804,0.45426932,95312.0,95311.0,0.002]
[1745843889007,0.45426932,95312.0,95296.0,0.0008494]
[1745843889008,0.06044085,95311.0,95310.0,1e-08]
[1745843889227,0.50995492,95311.0,95310.0,1e-08]
[1745843889429,0.56659076,95311.0,95310.0,1e-08]
[1745843889587,0.59599193,95311.0,95310.0,1e-08]
[1745843890457,0.5957948,95311.0,95310.0,1e-08]
[1745843890631,0.53653503,95311.0,95310.0,1e-08]
[1745843890840,0.13629131,95311.0,95310.0,1e-08]
[1745843891050,0.13891483,95311.0,95310.0,1e-08]
[1745843891400,0.01049273,95304.0,95297.0,0.09559219]
[1745843891604,0.22035347,95302.0,95298.0,0.01049339]
[1745843891890,0.01311645,95301.0,95298.0,0.01049339]
[1745843892085,0.00262339,95301.0,95297.0,0.30546166]
[1745843892316,0.01957351,95300.0,95298.0,0.01049339]
[1745843892648,0.00262339,95299.0,95297.0,0.30646166]
[1745843892847,0.31675044,95302.0,95298.0,0.2203605]
[1745843893077,0.0143913,95469.0,95309.0,0.01049218]
[1745843893078,0.00045723,95312.0,95309.0,0.01049218]
[1745843893286,0.00045723,95312.0,95310.0,0.20984036]
[1745843893459,0.02560236,95311.0,95310.0,0.20984036]
[1745843893840,0.02560236,95311.0,95309.0,0.01049218]
[1745843894254,0.00045723,95312.0,95309.0,0.01049218]
[1745843894456,0.00045723,95312.0,95309.0,0.22033539]
[1745843894659,0.01049207,95310.0,95309.0,0.001]
[1745843895021,0.01311515,95310.0,95309.0,0.001]
[1745843895270,0.00262308,95310.0,95309.0,0.001]
[1745843895746,0.01046998,95310.0,95309.0,0.001]
[1745843896408,0.01046998,95310.0,95309.0,0.341]
[1745843896629,0.008,95310.0,95309.0,0.4375]
[1745843896826,0.008,95310.0,95309.0,0.44520776]
[1745843896955,0.008,95310.0,95309.0,0.44420776]
[1745843897346,0.014,95310.0,95309.0,0.44420776]
[1745843897794,0.008,95310.0,95309.0,0.44420776]
[1745843898003,0.008,95310.0,95309.0,1.14420776]
[1745843898264,0.004,95310.0,95309.0,1.14420776]
[1745843898408,0.009,95310.0,95309.0,1.14420776]
[1745843900553,0.009,95310.0,95309.0,1.35405153]
[1745843902021,0.009,95310.0,95309.0,1.35405153]
[1745843902229,0.00734653,95333.0,95332.0,0.20979314]
[1745843902442,0.00734653,95333.0,95332.0,0.34979314]
[1745843902874,0.22287359,95346.0,95342.0,0.22025777]
[1745843903049,0.01958611,95345.0,95342.0,0.22025937]
[1745843903258,0.02220825,95345.0,95342.0,0.01048855]
[1745843903434,0.21239008,95344.0,95340.0,0.01048877]
[1745843903634,0.2097768,95340.0,95337.0,0.0104891]
[1745843903834,0.20978032,95338.0,95334.0,0.01048943]
[1745843904058,0.22027618,95335.0,95333.0,0.00785485]
[1745843904235,0.01048921,95336.0,95332.0,0.10208965]
[1745843904593,0.01048921,95336.0,95333.0,0.7]
[1745843904594,0.20978654,95335.0,95333.0,0.7]
[1745843904792,0.20978874,95334.0,95333.0,0.7]
[1745843905238,0.21478654,95335.0,95333.0,0.7]
[1745843905443,0.007,95335.0,95333.0,0.7]
[1745843905853,0.0068489,95335.0,95332.0,0.31188247]
[1745843906047,0.22027685,95335.0,95332.0,0.10208965]
[1745843906290,0.22027685,95335.0,95332.0,0.0916]
[1745843906494,0.20978893,95334.0,95332.0,0.0916]
[1745843906834,0.21278893,95334.0,95332.0,0.0916]
[1745843907086,0.003,95334.0,95332.0,0.0916]
[1745843907314,0.21278879,95334.0,95332.0,0.0916]
[1745843907643,0.21278879,95334.0,95332.0,0.09941748]
[1745843908138,0.20978879,95334.0,95332.0,0.09941748]
[1745843908681,0.21278879,95334.0,95332.0,0.09941748]
[1745843909097,0.21678879,95334.0,95332.0,0.09941748]
[1745843909284,0.20979094,95333.0,95332.0,0.09941748]
[1745843911285,0.21378879,95334.0,95332.0,0.09941748]
[1745843911860,0.003,95333.0,95332.0,0.09941748]
[1745843912267,0.004,95333.0,95332.0,0.09941748]
[1745843912565,0.21278881,95334.0,95332.0,0.09941748]
[1745843912791,0.21678881,95334.0,95332.0,0.09941748]
[1745843912977,0.21378881,95334.0,95332.0,0.09941748]
[1745843913178,0.20978881,95334.0,95332.0,0.09941748]
[1745843913344,0.003,95333.0,95332.0,0.09941748]
[1745843914074,0.21279094,95333.0,95332.0,0.09941748]
[1745843914576,0.21679094,95333.0,95332.0,0.09941748]
[1745843915391,0.21379094,95333.0,95332.0,0.09941748]
[1745843915687,0.21379094,95333.0,95332.0,0.1046993]
[1745843916450,0.21679094,95333.0,95332.0,0.1046993]
[1745843917424,0.21679094,95333.0,95332.0,0.8046993]
[1745843918029,0.007,95333.0,95332.0,1.01449244]
[1745843918418,0.007,95333.0,95332.0,1.40169244]
[1745843918814,0.007,95333.0,95332.0,1.31009244]
[1745843919022,0.007,95333.0,95332.0,1.50858258]
[1745843919222,0.004,95333.0,95332.0,1.50858258]
[1745843919426,0.005,95333.0,95332.0,1.50858258]
[1745843919624,0.001,95333.0,95332.0,1.50858258]
[1745843920057,0.00013715,95350.0,95349.0,0.20975573]
[1745843920319,0.00013715,95350.0,95349.0,1.00135573]
[1745843920521,0.00013715,95350.0,95349.0,1.00656111]
[1745843921051,0.00013715,95350.0,95349.0,0.79680538]
[1745843921232,0.00013715,95350.0,95349.0,1.00656111]
[1745843921586,0.00413715,95350.0,95349.0,0.79680538]
[1745843922182,0.00713715,95350.0,95349.0,0.79680538]
[1745843922546,0.00713715,95350.0,95349.0,1.00656111]
[1745843931486,0.00699705,95350.0,95349.0,1.00656111]
[1745843933343,0.21675058,95350.0,95349.0,0.79672538]
[1745843934106,0.22410326,95350.0,95349.0,0.79672538]
[1745843935406,0.22410326,95350.0,95349.0,0.70520538]
[1745843935628,0.3309934,95350.0,95349.0,0.70520538]
[1745843936228,0.35060376,95350.0,95349.0,0.70520538]
[1745843936636,0.34760376,95350.0,95349.0,0.70520538]
[1745843937067,0.35260376,95350.0,95349.0,0.70520538]
[1745843937792,0.34860671,95350.0,95349.0,0.00520538]
[1745843938001,0.35360671,95350.0,95349.0,0.00496719]
[1745843938135,0.20976233,95346.0,95345.0,0.09152]
[1745843938323,0.31927466,95346.0,95345.0,0.09152]
[1745843938522,0.34361551,95346.0,95345.0,0.09152]
[1745843939364,0.34561551,95346.0,95345.0,0.09152]
[1745843940169,0.32600775,95346.0,95345.0,0.09152]
[1745843940373,0.32800775,95346.0,95345.0,0.09152]
[1745843940578,0.34762236,95346.0,95345.0,0.09152]
[1745843941736,0.34746425,95346.0,95345.0,0.09152]
[1745843941945,0.03096989,95346.0,95345.0,0.09152]
[1745843942153,0.01135528,95346.0,95345.0,0.30128453]
[1745843942370,0.01135528,95346.0,95345.0,1.00644084]
[1745843943173,0.004,95346.0,95345.0,1.00644084]
[1745843943414,0.004,95346.0,95345.0,0.79667631]
[1745843943699,0.21376233,95346.0,95345.0,0.79667631]
[1745843944289,0.004,95346.0,95345.0,0.79667631]
[1745843945233,0.01135722,95346.0,95345.0,1.00644084]
[1745843945552,0.01135722,95346.0,95345.0,0.79667631]
[1745843946109,0.01135722,95346.0,95345.0,1.00644084]
[1745843946768,0.0111741,95346.0,95345.0,1.00644084]
[1745843947376,0.22093643,95346.0,95345.0,0.79667631]
[1745843947566,0.0111741,95346.0,95345.0,1.00644084]
[1745843949311,0.0111741,95346.0,95345.0,1.39304084]
[1745843949966,0.00381688,95346.0,95345.0,1.39304084]
[1745843950733,0.002,95346.0,95345.0,1.39296287]
[1745843950942,0.03273502,95368.0,95364.0,0.22020458]
[1745843951146,0.24251227,95368.0,95365.0,0.09152]
[1745843951355,0.00735837,95367.0,95365.0,0.30623415]
[1745843952098,0.00735837,95367.0,95365.0,0.79651385]
[1745843952422,0.00735837,95366.0,95365.0,1.00623439]
[1745843953156,6.236e-05,95368.0,95367.0,0.20971614]
[1745843953362,6.236e-05,95368.0,95367.0,0.90971614]
[1745843953922,0.00306236,95368.0,95367.0,0.90971614]
[1745843954439,6.236e-05,95368.0,95367.0,0.90989284]
[1745843954643,0.00406236,95368.0,95367.0,0.90989284]
[1745843954842,0.00806236,95368.0,95367.0,0.90989284]
[1745843955249,0.00806236,95368.0,95367.0,0.91778207]
[1745843956440,0.00806236,95368.0,95367.0,0.21778207]
[1745843956799,0.00406236,95368.0,95367.0,0.30930207]
[1745843957002,6.236e-05,95368.0,95367.0,0.30930207]
[1745843957229,0.00306236,95368.0,95367.0,0.30930207]
[1745843957425,0.00606236,95368.0,95367.0,0.32032248]
[1745843957631,0.00606236,95368.0,95367.0,0.66032248]
[1745843958150,0.00306236,95368.0,95367.0,0.66032248]
[1745843958291,0.00606236,95368.0,95367.0,0.66032248]
[1745843958491,0.00606236,95368.0,95367.0,1.36032248]
[1745843959766,0.00606236,95368.0,95367.0,1.36025662]
[1745843960199,0.00306236,95368.0,95367.0,1.36025662]
[1745843960332,6.236e-05,95368.0,95367.0,1.36025662]
[1745843960702,0.0004247,95372.0,95367.0,1.36025662]
[1745843960703,1e-08,95374.0,95373.0,0.64240295]
[1745843960921,1e-08,95374.0,95373.0,1.44929309]
[1745843961216,1e-08,95374.0,95373.0,1.4493403]
[1745843962549,1e-08,95374.0,95373.0,1.4503403]
[1745843965008,1e-08,95374.0,95373.0,1.454695]
[1745843965206,1e-08,95374.0,95373.0,1.361995]
[1745843965420,1e-08,95374.0,95373.0,1.25510486]
[1745843967058,1e-08,95374.0,95373.0,1.34658486]
[1745843973812,1e-08,95374.0,95373.0,1.453475]
[1745843975597,1e-08,95374.0,95373.0,1.24377205]
[1745843975800,1e-08,95374.0,95373.0,1.453475]
[1745843978776,1e-08,95374.0,95373.0,1.452475]
[1745843979323,1e-08,95374.0,95373.0,1.453475]
[1745843979670,1e-08,95374.0,95373.0,1.452475]
[1745843979873,1e-08,95374.0,95373.0,1.453475]
[1745843981659,1e-08,95374.0,95373.0,1.454475]